Cogmind - Beta 11 @@@ ROGUE MODE // 2022.03.21 @ 17:13:48 Player: lumberblack Result: Destroyed by S-27 Virus with Autogun Performance ------------- Evolutions (6) 3000 Regions Visited (18) 3600 Robots Destroyed (185) 925 Value Destroyed (7646) 7646 Prototype IDs (52) 1040 Alien Tech Used (1) 200 Bonus (2567) 2567 TOTAL SCORE: 18978 Bonus ------- High Alert Combat Kills 165 Follower Combat Kills 1787 Entered DSFs 500 Network Hubs Disabled 200 Aligned with FarCom 300 Met Data Miner 300 Built Enhanced Grunts 300 Met R17 at Cetus 500 Friendly Fire -1485 Cogmind --------- Core Integrity 0/1150 Matter 300/300 Energy 98/100 System Corruption 10% Temperature Cool (0) Movement Core (50) Location -4/Factory Parts ------- > --- POWER (2) -------- (None) > --- PROPULSION (4) --- Centrium Heavy Treads > --- UTILITY (10) ----- (None) > --- WEAPON (3) ------- (None) > --- INVENTORY (5) ---- Advanced Energy Well (368) Experimental Signal Interpreter Particle Accelerator Heavy Disruptor Cannon Peak State ------------ > --- POWER ------------ Light Antimatter Reactor Quantum Reactor > --- PROPULSION ------- Centrium Heavy Treads Centrium Heavy Treads > --- UTILITY ---------- Large Storage Unit Improved Transmission Jammer Centrium Medium Armor Plating Centrium Medium Armor Plating Centrium Medium Armor Plating Heavy Reactive Plating Graphene Brace Improved Hardlight Generator Advanced Field Recycling Unit > --- WEAPON ----------- Railgun Hypervelocity Gauss Cannon Hypervelocity Gauss Cannon > --- INVENTORY -------- Centrium Heavy Treads Advanced Energy Well Experimental Signal Interpreter Particle Accelerator Layered Heavy Armor Plating Heavy Disruptor Cannon Hypervelocity Gauss Cannon [Rating: 140] Favorites ----------- Power Fission Core Engine Ion Engine Power Core Fission Core Reactor Quantum Reactor Propulsion Light Treads Treads Light Treads Leg Improved VSS Leg Wheel Wheel Utility Advanced Targeting Computer Device Improved Hardlight Generator Storage Large Storage Unit Processor Advanced Targeting Computer Hackware Authchip [R/Combat] Protection Medium Armor Plating Weapon Advanced Assault Cannon Energy Gun Advanced Beam Rifle Energy Cannon Heavy Phase Cannon Ballistic Gun KE Penetrator Ballistic Cannon Advanced Assault Cannon Launcher Precision Rocket Launcher Special Weapon Mining Laser Impact Weapon Maul Build | -11 -10 -10 -10 -9 -8 -7 -7 -6 -6 -6 -6 -5 -5 -5 -5 -5 -5 -4 ------- Run | Scr Mat Min Exi Min Mat Fac DSF Fac Low Low Dat Pro Fac Ext Cet Arc Hub Fac Slots Evolved 12 | . . . . . 4 2 . 2 . . . . 2 . . . . 2 Power 1 | . . . . . . . . 1 . . . . . . . . . . Propulsion 2 | . . . . . 2 . . . . . . . . . . . . . Utility 8 | . . . . . 2 2 . 1 . . . . 2 . . . . 1 Weapon 1 | . . . . . . . . . . . . . . . . . . 1 Parts Attached 232 | 5 29 1 3 . 35 2 26 28 5 2 4 11 10 16 21 . 7 27 Power 24 | 1 1 1 . . 5 . 3 3 . . . . 2 1 5 . . 2 Engine 15 | 1 1 1 . . 5 . 3 1 . . . . . . 3 . . . Core 5 | . . . . . . . . 2 . . . . 2 1 . . . . Reactor 4 | . . . . . . . . . . . . . . . 2 . . 2 Propulsion 38 | 2 7 . . . 8 . 6 4 . . 2 . 1 . 5 . . 3 Treads 20 | 1 4 . . . 8 . 1 . . . . . . . 3 . . 3 Leg 14 | . . . . . . . 5 4 . . 2 . 1 . 2 . . . Wheel 4 | 1 3 . . . . . . . . . . . . . . . . . Hover . | . . . . . . . . . . . . . . . . . . . Flight . | . . . . . . . . . . . . . . . . . . . Utility 97 | 1 8 . . . 7 2 9 17 3 1 . 8 6 13 5 . 4 13 Device 57 | 1 3 . . . 2 1 6 8 2 1 . 5 5 10 1 . 4 8 Storage 6 | . 2 . . . . . 1 2 . . . 1 . . . . . . Processor 5 | . . . . . 1 . 1 2 . . . . . 1 . . . . Hackware 3 | . . . . . . . 1 2 . . . . . . . . . . Protection 26 | . 3 . . . 4 1 . 3 1 . . 2 1 2 4 . . 5 Artifact . | . . . . . . . . . . . . . . . . . . . Weapon 73 | 1 13 . 3 . 15 . 8 4 2 1 2 3 1 2 6 . 3 9 Energy Gun 16 | . . . . . 8 . 5 . . . . 2 . . 1 . . . Energy Cannon 3 | . 1 . . . . . . . . . . . 1 . . . . 1 Ballistic Gun 11 | 1 3 . . . . . . . . . . . . 2 1 . 2 2 Ballistic Cannon 30 | . 6 . 2 . 2 . 3 3 . 1 1 1 . . 4 . 1 6 Launcher 4 | . . . . . . . . 1 2 . 1 . . . . . . . Special Weapon 1 | . 1 . . . . . . . . . . . . . . . . . Impact Weapon 8 | . 2 . 1 . 5 . . . . . . . . . . . . . Slashing Weapon . | . . . . . . . . . . . . . . . . . . . Piercing Weapon . | . . . . . . . . . . . . . . . . . . . Special Melee Weapon . | . . . . . . . . . . . . . . . . . . . Unidentified Prototypes 8 | . . . . . 2 . . 1 . 1 . 1 . . 2 . . 1 Corrupted Parts 5 | . 1 . . . . . . . . . . . . . 4 . . . System Corruption 22 | . 7 . . . . . . . . . . . . . 15 . . . Parts Lost 32 | . 3 . . . . . 13 . . 1 . . . . 6 . . 9 Power 7 | . 1 . . . . . 2 . . . . . . . 2 . . 2 Propulsion 8 | . 1 . . . . . 4 . . . . . . . 3 . . . Utility 11 | . 1 . . . . . 4 . . . . . . . 1 . . 5 Weapon 6 | . . . . . . . 3 . . 1 . . . . . . . 2 Highest Loss Streak 13 | . 2 . . . . . 13 . . 1 . . . . 3 . . 8 To Critical Strikes . | . . . . . . . . . . . . . . . . . . . Average Slot Usage (%) 93 | . 98 100 86 100 98 100 65 96 93 92 82 98 99 93 80 82 81 78 Engine 4 | . 12 14 14 14 9 7 4 3 . . . . . . 1 . . . Core 4 | . . . . . . . . 9 13 13 13 13 11 11 1 . . . Reactor 1 | . . . . . . . . . . . . . . . 7 11 11 8 Treads 12 | . 21 28 28 28 34 30 11 . . . . . . . 7 11 11 9 Leg 11 | . . . . . . . 4 25 26 26 26 26 23 23 5 . . . Device 9 | . 4 . . . 9 15 8 11 6 6 6 11 16 15 12 11 10 18 Storage 8 | . 13 14 14 14 9 7 9 6 6 6 6 6 10 5 5 5 5 4 Processor 11 | . . . . . 3 7 9 20 20 20 20 20 17 17 16 11 11 8 Protection 9 | . 9 14 14 14 14 15 4 3 6 6 6 6 5 6 9 17 17 11 Energy Gun 3 | . . . . . 14 15 7 . . . . 4 5 3 . . . . Energy Cannon 1 | . 4 . . . . . . . . . . . 4 3 . . . . Ballistic Cannon 9 | . 18 28 3 28 1 . 3 12 4 3 1 6 . . 5 11 10 13 Naked Turns . | . . . . . . . . . . . . . . . . . . . Heaviest Build 159 | 15 40 40 40 40 50 50 50 75 75 72 70 77 113 113 139 139 147 159 Greatest Support 160 | 20 40 40 40 40 112 112 112 72 69 69 69 64 74 74 160 160 160 160 Greatest Overweight (x) 15 | 1 3 . . . . . 15 1 1 1 1 1 1 1 5 . . 1 Average Overweight (x) . | . 1 . . . . . . . . . . . 1 1 . . . . Largest Inventory Capacity 15 | 8 15 15 15 15 15 15 15 15 15 15 15 15 15 15 15 15 15 15 Average Capacity 14 | 8 13 15 15 15 15 15 12 13 15 15 15 15 15 15 15 15 15 14 Most Carried 15 | 6 15 15 15 14 15 14 13 15 15 15 14 15 15 15 15 15 15 15 Average Carried 13 | 5 12 14 14 14 14 13 9 12 14 14 14 14 14 14 14 14 14 13 Final Capacity 15 | 8 15 15 15 15 15 15 5 15 15 15 15 15 15 15 15 15 15 5 Final Carried 15 | 4 15 15 14 14 15 13 5 15 15 14 14 15 15 15 15 15 15 5 Class Distribution -------------------- 53% | Mutant 39% | Scavenger-Mutant 6% | Scavenger-Tank Dominant Class ---------------- Mutant | -10/Materials Mutant | -10/Mines Mutant | -10/Exiles Mutant | -9/Mines Mutant | -8/Materials Mutant | -7/Factory Mutant | -7/DSF Scavenger-Mutant | -6/Factory Scavenger-Mutant | -6/Lower Caves Scavenger-Mutant | -6/Lower Caves Mutant | -6/Data Miner Mutant | -5/Proximity Caves Scavenger-Mutant | -5/Factory Mutant | -5/Extension Scavenger-Mutant | -5/Cetus Scavenger-Mutant | -5/Archives Scavenger-Mutant | -5/Hub_04(d) Scavenger-Tank | -4/Factory Resources | -11 -10 -10 -10 -9 -8 -7 -7 -6 -6 -6 -6 -5 -5 -5 -5 -5 -5 -4 ----------- Run | Scr Mat Min Exi Min Mat Fac DSF Fac Low Low Dat Pro Fac Ext Cet Arc Hub Fac Matter Collected 8275 | 268 659 239 . 55 562 . 361 1547 264 316 . 213 99 1195 998 72 177 1250 Remotely . | . . . . . . . . . . . . . . . . . . . Salvage Created 8938 | 136 771 364 . 72 1126 . 506 1442 182 294 . 250 86 429 1322 268 445 1245 Parts 342 | 10 38 29 . 4 45 . 25 45 8 11 . 3 . 12 41 9 14 48 Haulers Intercepted 10 | . 2 . . . 2 . . 3 . . . . . 1 . . 1 1 Recyclers Shooed 6 | 1 . . . . . . . 1 . . . . . . . . 1 3 Parts Field Recycled 53 | . . . . . . . . . . . . . 8 29 . . 8 8 Retrieved Matter 945 | . . . . . . . . . . . . . 206 471 . . 195 73 Parts Self-Destructed 20 | . . . . . . . . . 5 3 . 12 . . . . . . Prevented 1 | . . . . . . . . . . 1 . . . . . . . . Kills | -11 -10 -10 -10 -9 -8 -7 -7 -6 -6 -6 -6 -5 -5 -5 -5 -5 -5 -4 ------- Run | Scr Mat Min Exi Min Mat Fac DSF Fac Low Low Dat Pro Fac Ext Cet Arc Hub Fac Combat Hostiles Destroyed 132 | . 14 12 . . 18 . 9 13 7 12 . 2 1 4 21 3 2 14 Melee 4 | . . . . . 1 . . . . . . . . . 1 . . 2 Guns 36 | . 3 . . . 15 . 5 . . . . 1 . . 12 . . . Cannons 70 | . 10 12 . . 1 . 4 13 3 . . 1 1 1 8 3 1 12 AOE 17 | . 1 . . . . . . . 4 12 . . . . . . . . Classes Destroyed 16 | 2 5 . . . 2 . 2 3 1 1 . . . . . . . . Worker 10 | . 1 . . . 1 . . 1 . . . . . . . . 4 3 Builder 2 | . . . . . . . . 1 . . . . . 1 . . . . Tunneler 5 | 3 . 2 . . . . . . . . . . . . . . . . Hauler 10 | . 2 . . . 2 . . 3 . . . . . 1 . . 1 1 Recycler 15 | 1 1 . . 1 1 . . 7 . . . . . . . . . 4 Mechanic 1 | . 1 . . . . . . . . . . . . . . . . . Watcher 7 | . 2 . . . 2 . . 2 . . . . . . . . . 1 Swarmer 7 | . . . . . . . . . 3 . . 2 . . . . . 2 Grunt 76 | . 14 12 . . 11 . 5 4 3 7 . . . . 17 . . 3 Brawler 2 | . . . . . 1 . . . . 1 . . . . . . . . Duelist 3 | . . . . . . . . . . 2 . . . . 1 . . . Sentry 18 | . . . . . 6 . . 2 . 1 . . 1 3 . 3 2 . Specialist 3 | . . . . . . . 3 . . . . . . . . . . . Hunter 5 | . . . . . . . . 1 1 . . . . 1 . . . 2 Programmer 13 | . . . . . . . . 6 . 1 . . . . . . . 6 Heavy 2 | . . . . . . . 1 . . . . . . . . . . 1 Cetus Guard 3 | . . . . . . . . . . . . . . . 3 . . . Enhanced Grunt 2 | . . . . . . . . . . . . 1 . . . . 1 . Savage 1 | . . . . . . . . . . . . . . . 1 . . . Best Kill Streak 10 | 2 3 6 . 1 4 . 3 3 3 4 . 2 1 2 8 3 4 10 Combat Bots Only 8 | . 3 5 . . 4 . 3 3 3 4 . 2 1 2 8 3 1 3 Max Kills in Single Turn 3 | 1 1 2 . 1 2 . 1 2 2 2 . 1 1 1 2 1 3 2 Gunslinging 1 | . . . . . . . . . . . . . . . 1 . . . Exploded 2 | . 1 . . . . . . . 2 2 . . . . . . . . Melee 1 | . . . . . 1 . . . . . . . . . 1 . . 1 Uniques/NPCs Destroyed . | . . . . . . . . . . . . . . . . . . . Combat | -11 -10 -10 -10 -9 -8 -7 -7 -6 -6 -6 -6 -5 -5 -5 -5 -5 -5 -4 -------- Run | Scr Mat Min Exi Min Mat Fac DSF Fac Low Low Dat Pro Fac Ext Cet Arc Hub Fac Damage Taken 13106 | . 1086 180 . . 826 . 1640 671 388 489 . 91 142 500 2579 18 611 3885 Core 2231 | . 216 24 . . 34 . 295 77 16 19 . . . 128 205 9 48 1160 Absorbed by Shields 2165 | . . . . . . . . 384 66 . . 54 48 250 1105 12 42 204 Reduced by Siege Mode 40 | . . . . . . . . . . . . . . . . . . 40 Redirected to Shielding 5 | . . . . . . . . 5 . . . . . . . . . . Regen/Repaired (Parts) 845 | . 396 . . . 58 . . . . . . . . 201 . . . 190 Core Remaining (%) 66 | 100 . . . 4 93 . 57 . . . . 86 . . . . 61 . Volleys Fired 589 | 6 59 22 . 1 79 . 38 91 11 15 . 39 29 47 78 5 17 52 Largest 3 | 2 2 2 . 1 2 . 2 2 2 2 . 2 2 2 2 2 2 3 Hottest 183 | 70 100 78 . 39 122 . 122 96 96 86 . 133 175 175 122 122 122 183 Shots Fired 1085 | 12 114 43 . 1 154 . 75 169 21 21 . 47 34 77 142 9 26 140 Gun 428 | 12 21 . . . 136 . 54 . . . . 39 5 34 102 . 9 16 Cannon 629 | . 88 43 . 1 18 . 21 169 16 4 . 7 29 43 40 9 17 124 Launcher 23 | . . . . . . . . . 5 17 . 1 . . . . . . Special 5 | . 5 . . . . . . . . . . . . . . . . . Kinetic 681 | 6 88 43 . 1 18 . 21 169 16 4 . 7 . 8 126 9 26 139 Thermal 380 | 6 26 . . . 136 . 54 . . . . 39 34 69 16 . . . Explosive 23 | . . . . . . . . . 5 17 . 1 . . . . . . Electromagnetic 1 | . . . . . . . . . . . . . . . . . . 1 Robot Hit Streak 34 | 11 16 7 . . 17 . 21 20 6 8 . 19 9 20 27 34 6 14 Robot Miss Streak 4 | . 3 1 . . 4 . 3 3 2 1 . 2 2 2 2 . 2 2 Penetration Max 1 | . . . . . . . . . . . . . . 1 1 . . 1 Secondary Targets 6 | . . . . . . . . . . . . . . . 6 . . . Max Gunslinging Chain 1 | . . . . . . . . . . . . . . . 1 . . . Shots Hit Robots 679 | 11 63 22 . . 100 . 54 106 12 10 . 36 11 39 110 7 8 90 Core Hits 318 | 5 29 14 . 1 39 . 19 46 12 26 . 15 3 11 47 4 11 36 Critical Kills 32 | . . . . . . . . . . . . . . 1 9 3 2 17 Critical Parts Destroyed 51 | . 2 . . . . . . . . . . . . . 13 1 5 30 Critical Strikes 125 | 1 5 2 . . 7 . 4 14 1 . . 5 . 5 22 5 7 47 Burn 20 | 1 . . . . 6 . 4 . . . . 5 . 4 . . . . Meltdown 1 | . . . . . . . . . . . . . . 1 . . . . Destroy 81 | . . . . . . . . . . . . . . . 22 5 7 47 Blast 21 | . 3 2 . . 1 . . 14 1 . . . . . . . . . Smash 2 | . 2 . . . . . . . . . . . . . . . . . Melee Attacks 15 | . 5 . . . 10 . . . . . . . . . . . . . Impact 15 | . 5 . . . 10 . . . . . . . . . . . . . Slashing . | . . . . . . . . . . . . . . . . . . . Piercing . | . . . . . . . . . . . . . . . . . . . Sneak Attacks 1 | . 1 . . . . . . . . . . . . . . . . . Combat Hostiles . | . . . . . . . . . . . . . . . . . . . Follow-up Attacks . | . . . . . . . . . . . . . . . . . . . Damage Inflicted 18907 | 140 1587 608 . 32 2121 . 1163 3232 707 1695 . 588 313 1048 2594 120 914 2045 Guns 6503 | 140 179 . . . 1850 . 816 . . . . 480 72 459 2073 . 26 408 Cannons 8835 | . 999 549 . . 227 . 347 3232 300 . . 108 241 589 520 120 152 1451 Explosions 3078 | . 253 . . 32 . . . . 407 1695 . . . . . . 691 . Melee 114 | . 114 . . . . . . . . . . . . . . . . . Ramming 377 | . 42 59 . . 44 . . . . . . . . . 1 . 45 186 Kinetic 10607 | 64 873 549 . . 227 . 347 3232 300 . . 108 . 203 2569 120 178 1837 Thermal 4741 | 76 305 . . 32 1850 . 816 . . . . 480 313 845 24 . . . Explosive 2102 | . . . . . . . . . 407 1695 . . . . . . . . Electromagnetic 966 | . 253 . . . . . . . . . . . . . . . 691 22 Impact 114 | . 114 . . . . . . . . . . . . . . . . . Slashing . | . . . . . . . . . . . . . . . . . . . Piercing . | . . . . . . . . . . . . . . . . . . . Highest Corruption 21 | . 7 7 7 7 1 . . 2 2 2 2 2 . . 15 15 21 10 Average Corruption 4 | . 7 7 7 7 1 . . 1 2 2 2 2 . . 14 15 15 2 Corruption Purged . | . . . . . . . . . . . . . . . . . . . Corruption Blocked . | . . . . . . . . . . . . . . . . . . . Effects 196 | . 30 38 7 2 10 . . 25 5 7 1 9 . . 22 6 26 8 Message Errors 42 | . 7 8 2 . 3 . . 3 . . . 3 . . 6 . 6 4 Matter Fused 43 | . 8 11 1 2 1 . . 6 . 2 . 1 . . 5 2 2 2 Heat Flow Errors 21 | . 1 3 1 . 3 . . 4 2 2 . 1 . . 1 . 3 . Energy Discharges 30 | . 6 6 1 . 1 . . 5 . 2 . . . . 2 2 5 . Parts Rejected 1 | . . . . . . . . . . . . . . . . . 1 . Data Loss (minor) 24 | . 3 2 2 . 1 . . 4 1 . 1 2 . . 3 . 4 1 Data Loss (major) 9 | . . 4 . . 1 . . 1 1 . . . . . 2 . . . Misfires 10 | . 3 . . . . . . . 1 1 . 1 . . 2 . 2 . Alerts 8 | . . 3 . . . . . 2 . . . . . . . 1 2 . Weapon Failures 8 | . 2 1 . . . . . . . . . 1 . . 1 1 1 1 Overload Shots . | . . . . . . . . . . . . . . . . . . . Overflow Damage 334 | . 129 . . . . . . 131 33 18 . . . 4 . . 12 7 Projectiles 157 | . 15 . . . . . . 131 . . . . . 4 . . . 7 Explosions 63 | . . . . . . . . . 33 18 . . . . . . 12 . Melee 114 | . 114 . . . . . . . . . . . . . . . . . Knockbacks 70 | . 6 5 . . . . 1 40 1 . . 2 . . 4 . 1 10 Impact 3 | . . 1 . . . . . . . . . . . . . . . 2 Kinetic 64 | . 6 4 . . . . 1 37 1 . . 2 . . 4 . 1 8 Secondary 3 | . . . . . . . . 3 . . . . . . . . . . Self-Inflicted Damage 440 | . 49 . . . . . . . . 295 . . . . . . 84 12 Shots 8 | . 2 . . . . . . . . 5 . . . . . . 1 . Rammed 45 | . 8 8 . . 10 . . . . . . . . . . . 3 16 Targets Rammed 52 | . 8 9 . . 12 . . . . . . . . . 1 . 3 19 Kicked . | . . . . . . . . . . . . . . . . . . . Crushed 7 | . . 1 . . 2 . . . . . . . . . 1 . . 3 Highest Temperature 758 | 27 510 223 173 4 366 . 303 324 248 206 . 256 318 252 411 9 269 758 Average Temperature 122 | 11 113 62 95 3 82 . 95 92 148 85 . 83 69 74 119 6 62 295 Received Heat Transfer 2929 | . 624 96 . . 432 . 486 115 123 54 . 6 30 40 899 . 24 . Effects 108 | . 12 . . . 2 . . 1 1 . . . . . 5 . . 87 Shutdowns 17 | . . . . . 1 . . . . . . . . . 2 . . 14 Energy Bleed 11 | . . . . . . . . . . . . . . . 1 . . 10 Interference 21 | . 4 . . . 1 . . 1 1 . . . . . . . . 14 Matter Decay 15 | . . . . . . . . . . . . . . . 1 . . 14 Short Circuit 8 | . 1 . . . . . . . . . . . . . . . . 7 Damage (minor) 8 | . 1 . . . . . . . . . . . . . 1 . . 6 Damage (major) 21 | . 5 . . . . . . . . . . . . . . . . 16 Damage (core) 7 | . 1 . . . . . . . . . . . . . . . . 6 Siege Activations 1 | . . . . . . . . . . . . . . . . . . 1 Total Turns 12 | . . . . . . . . . . . . . . . . . . 12 Longest Duration 12 | . . . . . . . . . . . . . . . . . . 12 Robots Corrupted 2 | . . . . . . . . . . . . . . . . . 2 . Combat Hostiles 1 | . . . . . . . . . . . . . . . . . 1 . Parts Fried 7 | . 2 . . . . . . . . . . . . . . . 5 . Impact Corruptions 2 | . 2 . . . . . . . . . . . . . . . . . Robots Melted 4 | . . . . . 1 . . . . . . . . 3 . . . . Combat Hostiles 4 | . . . . . 1 . . . . . . . . 3 . . . . Parts Melted 24 | . . . . . 9 . 4 . . . . 1 4 6 . . . . Heat Transferred 11067 | 296 629 . . 50 3922 . 1813 . . . . 2150 459 1711 37 . . . Parts Sabotaged . | . . . . . . . . . . . . . . . . . . . Parts Stolen . | . . . . . . . . . . . . . . . . . . . Parts Stripped . | . . . . . . . . . . . . . . . . . . . Power Chain Reactions . | . . . . . . . . . . . . . . . . . . . Missiles Intercepted . | . . . . . . . . . . . . . . . . . . . Alert | -11 -10 -10 -10 -9 -8 -7 -7 -6 -6 -6 -6 -5 -5 -5 -5 -5 -5 -4 ------- Run | Scr Mat Min Exi Min Mat Fac DSF Fac Low Low Dat Pro Fac Ext Cet Arc Hub Fac Peak Influence 896 | 20 269 173 . 50 300 136 210 231 . . . . 102 262 776 480 896 499 Initial 428 | . 13 71 . . 19 136 95 109 . . . . 21 38 45 310 168 428 Average 160 | 9 160 75 . 19 101 136 160 114 . . . . 55 108 291 442 448 383 Maximum Alert Level 3 | . 1 . . . 1 . 1 1 . . . . . 1 3 2 3 2 Low Security (%) 71 | 100 67 100 . 100 73 100 72 95 . . . . 100 91 21 . 13 . Level 1 20 | . 32 . . . 26 . 28 4 . . . . . 8 55 22 9 56 Level 2 7 | . . . . . . . . . . . . . . . 13 77 67 43 Level 3 . | . . . . . . . . . . . . . . . 8 . 9 . Level 4 . | . . . . . . . . . . . . . . . . . . . Level 5 . | . . . . . . . . . . . . . . . . . . . High Security . | . . . . . . . . . . . . . . . . . . . Max Security . | . . . . . . . . . . . . . . . . . . . Sterilizations 1 | . . . . . . . 1 . . . . . . . . . . . Squads Dispatched 37 | . 6 . . . 4 . 2 13 . . . . . 1 . . 4 7 Investigation 7 | . 4 . . . 1 . . 2 . . . . . . . . . . Extermination 9 | . . . . . . . . 6 . . . . . . . . . 3 Reinforcement 16 | . 2 . . . . . 2 5 . . . . . 1 . . 3 3 Assault 1 | . . . . . . . . . . . . . . . . . . 1 Garrison 4 | . . . . . 3 . . . . . . . . . . . 1 . Intercept . | . . . . . . . . . . . . . . . . . . . Searches Triggered . | . . . . . . . . . . . . . . . . . . . Data Miner Redirects 1 | . . . . . . . . . . . . . . . . . . 1 Construction Impeded 3 | . . . . . . . . . . . . . . . . . 2 1 Haulers Reinforced 1 | . . . . . . . . 1 . . . . . . . . . . Active Scanning Responses . | . . . . . . . . . . . . . . . . . . . Cargo Convoy Interrupts . | . . . . . . . . . . . . . . . . . . . Stealth | -11 -10 -10 -10 -9 -8 -7 -7 -6 -6 -6 -6 -5 -5 -5 -5 -5 -5 -4 --------- Run | Scr Mat Min Exi Min Mat Fac DSF Fac Low Low Dat Pro Fac Ext Cet Arc Hub Fac Distress Signals 17 | . 3 . . . 5 . . 1 . . . . . 2 2 . 2 2 Communications Jammed 6 | . . . . . . . . . . . . . . . . . 1 5 Distress Signals 2 | . . . . . . . . . . . . . . . . . . 2 Times Spotted 245 | . 37 10 . . 31 . 14 27 7 12 . 6 4 16 37 2 10 32 Peak Tracking Total 9 | . 6 3 . . 7 . 6 4 3 4 . 4 1 3 8 1 9 7 Tactical Retreats 18 | . 6 . . . 1 . 2 2 . . . . . 1 . . 1 5 Traps | -11 -10 -10 -10 -9 -8 -7 -7 -6 -6 -6 -6 -5 -5 -5 -5 -5 -5 -4 ------- Run | Scr Mat Min Exi Min Mat Fac DSF Fac Low Low Dat Pro Fac Ext Cet Arc Hub Fac Traps Triggered 11 | . . . . . 4 . . 1 . . . . . 4 . . 1 1 Indirectly 1 | . . . . . . . . . . . . . . . . . 1 . Trap Hack Attempts . | . . . . . . . . . . . . . . . . . . . Triggered . | . . . . . . . . . . . . . . . . . . . Disarmed . | . . . . . . . . . . . . . . . . . . . Reprogrammed . | . . . . . . . . . . . . . . . . . . . Reused . | . . . . . . . . . . . . . . . . . . . Traps Extracted . | . . . . . . . . . . . . . . . . . . . Installed . | . . . . . . . . . . . . . . . . . . . Triggered 1 | . 1 . . . . . . . . . . . . . . . . . Machines | -11 -10 -10 -10 -9 -8 -7 -7 -6 -6 -6 -6 -5 -5 -5 -5 -5 -5 -4 ---------- Run | Scr Mat Min Exi Min Mat Fac DSF Fac Low Low Dat Pro Fac Ext Cet Arc Hub Fac Machines Disabled 31 | . 3 . . 1 1 . 1 6 . 1 . . 2 2 2 1 11 . Max in Single Turn 9 | . 1 . . 1 1 . 1 1 . 1 . . 1 1 1 1 9 . Garrison Access 1 | . . . . . . . . . . . . . . . . . 1 . Network Hub 1 | . . . . . . . . . . . . . . . . . 1 . Machines Sabotaged . | . . . . . . . . . . . . . . . . . . . Garrisons Compromised . | . . . . . . . . . . . . . . . . . . . Overloaded Fab Kills . | . . . . . . . . . . . . . . . . . . . Hacking | -11 -10 -10 -10 -9 -8 -7 -7 -6 -6 -6 -6 -5 -5 -5 -5 -5 -5 -4 --------- Run | Scr Mat Min Exi Min Mat Fac DSF Fac Low Low Dat Pro Fac Ext Cet Arc Hub Fac Machines Accessed 57 | . 9 . 1 . 7 1 . 14 . 1 4 1 4 5 3 . 2 5 Terminals 35 | . 6 . . . 4 1 . 9 . . . 1 3 4 3 . 1 3 Fabricators 3 | . . . . . . . . 1 . . . . 1 . . . . 1 Repair Stations 4 | . 1 . . . 1 . . . . . . . . 1 . . . 1 Recycling Units 2 | . 2 . . . . . . . . . . . . . . . . . Scanalyzers 4 | . . . . . 1 . . 3 . . . . . . . . . . Garrison Access 3 | . . . . . 1 . . 1 . . . . . . . . 1 . Total Hacks 165 | . 32 . 1 . 18 1 . 37 . 1 30 1 7 12 7 . 4 14 Successful 102 | . 15 . 1 . 11 1 . 19 . 1 30 1 4 6 5 . 1 7 Failed 62 | . 16 . . . 7 . . 18 . . . . 3 6 2 . 3 7 Catastrophic 12 | . . . . . 3 . . 2 . . . . 1 3 1 . 1 1 Database Lockouts 1 | . 1 . . . . . . . . . . . . . . . . . Manual 41 | . 21 . 1 . 6 . . 2 . . . . 2 5 1 1 2 . Terminals 78 | . 21 . . . 9 1 . 16 . . . 1 5 10 7 . 2 6 Fabricators 6 | . . . . . . . . 3 . . . . 2 . . . . 1 Repair Stations 16 | . 5 . . . 2 . . . . . . . . 2 . . . 7 Recycling Units 6 | . 6 . . . . . . . . . . . . . . . . . Scanalyzers 22 | . . . . . 5 . . 17 . . . . . . . . . . Garrison Access 5 | . . . . . 2 . . 1 . . . . . . . . 2 . Terminal Hacks 62 | . 6 . 1 . 5 1 . 4 . 1 30 1 3 4 5 . . 1 Record 18 | . . . . . . . . . . 1 11 1 . . 5 . . . Part Schematic 11 | . . . . . . . . 1 . . 10 . . . . . . . Robot Schematic 6 | . . . . . . . . . . . 6 . . . . . . . Robot Analysis 2 | . 2 . . . . . . . . . . . . . . . . . Prototype ID Bank 9 | . 2 . . . 2 . . 1 . . 3 . 1 . . . . . Open DSF 2 | . . . . . . 1 . 1 . . . . . . . . . . Branch Access Points 1 | . . . . . 1 . . . . . . . . . . . . . Terminal Index 3 | . 1 . . . . . . 1 . . . . . 1 . . . . Repair Station Index 1 | . . . . . 1 . . . . . . . . . . . . . Alert Level 1 | . 1 . . . . . . . . . . . . . . . . . Unreport Threat 5 | . . . . . 1 . . . . . . . 1 2 . . . 1 Locate Traps 2 | . . . . . . . . . . . . . 1 1 . . . . EX-Prototype ID Bank 1 | . . . 1 . . . . . . . . . . . . . . . Fabricator Hacks 4 | . . . . . . . . 2 . . . . 1 . . . . 1 Load Schematic 2 | . . . . . . . . 1 . . . . 1 . . . . . Build 2 | . . . . . . . . 1 . . . . . . . . . 1 Repair Station Hacks 13 | . 4 . . . 2 . . . . . . . . 2 . . . 5 Scan Component 7 | . 2 . . . 1 . . . . . . . . 1 . . . 3 Repair 6 | . 2 . . . 1 . . . . . . . . 1 . . . 2 Recycling Unit Hacks 1 | . 1 . . . . . . . . . . . . . . . . . Retrieve Matter 1 | . 1 . . . . . . . . . . . . . . . . . Scanalyzer 17 | . . . . . 4 . . 13 . . . . . . . . . . Insert Component 9 | . . . . . 2 . . 7 . . . . . . . . . . Analyze 8 | . . . . . 2 . . 6 . . . . . . . . . . Garrison Access Hacks 1 | . . . . . . . . . . . . . . . . . 1 . Seal Access 1 | . . . . . . . . . . . . . . . . . 1 . Unauthorized Hacks 4 | . 4 . . . . . . . . . . . . . . . . . Terminals 2 | . 2 . . . . . . . . . . . . . . . . . Track 2 | . 2 . . . . . . . . . . . . . . . . . Fabricators . | . . . . . . . . . . . . . . . . . . . Repair Stations . | . . . . . . . . . . . . . . . . . . . Recycling Units 2 | . 2 . . . . . . . . . . . . . . . . . Tunnel 2 | . 2 . . . . . . . . . . . . . . . . . Scanalyzers . | . . . . . . . . . . . . . . . . . . . Garrison Access . | . . . . . . . . . . . . . . . . . . . Data Cores Recovered . | . . . . . . . . . . . . . . . . . . . Used . | . . . . . . . . . . . . . . . . . . . Hacking Detections 44 | . 9 . . . 6 . . 12 . . . 1 4 5 2 . 1 4 Full Trace Events 2 | . 1 . . . . . . 1 . . . . . . . . . . Feedback Events . | . . . . . . . . . . . . . . . . . . . Feedback Blocked . | . . . . . . . . . . . . . . . . . . . Robot Schematics Acquired 6 | . . . . . . . . . . . 6 . . . . . . . Robots Built . | . . . . . . . . . . . . . . . . . . . Authchips . | . . . . . . . . . . . . . . . . . . . Time . | . . . . . . . . . . . . . . . . . . . Total Robot Build Rating . | . . . . . . . . . . . . . . . . . . . Part Schematics Acquired 18 | . . . . . 2 . . 6 . . 10 . . . . . . . Parts Built 3 | . . . . . . . . 2 . . . . . . . . . 1 Authchips . | . . . . . . . . . . . . . . . . . . . Time 120 | . . . . . . . . 58 . . . . . . . . . 62 Total Part Build Rating 21 | . . . . . . . . 14 . . . . . . . . . 7 Parts Repaired 6 | . 2 . . . 1 . . . . . . . . 1 . . . 2 Time 274 | . 58 . . . 32 . . . . . . . . 25 . . . 159 Parts Recycled . | . . . . . . . . . . . . . . . . . . . Recycled Matter . | . . . . . . . . . . . . . . . . . . . Retrieved Matter . | . . . . . . . . . . . . . . . . . . . Retrieved Components . | . . . . . . . . . . . . . . . . . . . Parts Scanalyzed 9 | . . . . . 2 . . 7 . . . . . . . . . . Part Schematics Acquired 7 | . . . . . 2 . . 5 . . . . . . . . . . Parts Damaged . | . . . . . . . . . . . . . . . . . . . Bothacking | -11 -10 -10 -10 -9 -8 -7 -7 -6 -6 -6 -6 -5 -5 -5 -5 -5 -5 -4 ------------ Run | Scr Mat Min Exi Min Mat Fac DSF Fac Low Low Dat Pro Fac Ext Cet Arc Hub Fac Used RIF Installer . | . . . . . . . . . . . . . . . . . . . Robots Hacked . | . . . . . . . . . . . . . . . . . . . Non-combat . | . . . . . . . . . . . . . . . . . . . Combat . | . . . . . . . . . . . . . . . . . . . Robot Hacks Applied . | . . . . . . . . . . . . . . . . . . . Relay Couplers Released 2 | . . . . . . . . . . . . . . . . . 2 . Machine Destruction 2 | . . . . . . . . . . . . . . . . . 2 . Fabnet Peak Effective % . | . . . . . . . . . . . . . . . . . . . Robots Rewired 8 | . . . . . . . . . . . . . . 8 . . . . Allies Hacked . | . . . . . . . . . . . . . . . . . . . Hacks Repelled . | . . . . . . . . . . . . . . . . . . . Allies | -11 -10 -10 -10 -9 -8 -7 -7 -6 -6 -6 -6 -5 -5 -5 -5 -5 -5 -4 -------- Run | Scr Mat Min Exi Min Mat Fac DSF Fac Low Low Dat Pro Fac Ext Cet Arc Hub Fac Total Allies 30 | . . 2 . . . . . . . . . 1 . 22 5 . . . Largest Group 10 | . . 2 2 . . . . . . . . 1 . 10 7 3 3 . Highest-Rated Group 480 | . . 46 46 . . . . . . . . 96 . 384 480 288 288 . Highest-Rated Ally 159 | . . 31 31 . . . . . . . . 96 . 159 159 96 96 . Total Orders . | . . . . . . . . . . . . . . . . . . . Ally Attacks 233 | . . . . . . . . . . . . 11 . 96 75 6 45 . Total Damage 7478 | . . . . . . . . . . . . 449 . 2608 1977 288 2156 . Kills 47 | . . . . . . . . . . . . 6 . 14 16 1 10 . Allies Corrupted 1 | . . . . . . . . . . . . . . . . . 1 . Allies Melted . | . . . . . . . . . . . . . . . . . . . Intel | -11 -10 -10 -10 -9 -8 -7 -7 -6 -6 -6 -6 -5 -5 -5 -5 -5 -5 -4 ------- Run | Scr Mat Min Exi Min Mat Fac DSF Fac Low Low Dat Pro Fac Ext Cet Arc Hub Fac Robot Analysis Total 2 | . 2 . . . . . . . . . . . . . . . . . Derelict Logs Recovered 6 | . . 1 . . . . . . 3 1 . 1 . . . . . . Drone Launches . | . . . . . . . . . . . . . . . . . . . Drone Recoveries . | . . . . . . . . . . . . . . . . . . . Exploration | -11 -10 -10 -10 -9 -8 -7 -7 -6 -6 -6 -6 -5 -5 -5 -5 -5 -5 -4 ------------- Run | Scr Mat Min Exi Min Mat Fac DSF Fac Low Low Dat Pro Fac Ext Cet Arc Hub Fac Turns Passed 16332 | 86 2010 1135 345 55 2396 6 275 3081 668 609 113 714 624 1605 795 109 567 1139 Spaces Moved 7647 | 47 1183 467 212 34 862 3 112 1694 344 320 96 316 247 641 275 52 239 503 Core 139 | . . . . . . . 81 . . . . . . . . . . 58 Treads 3056 | 12 474 467 212 34 862 3 24 . . . . . . . 232 52 239 445 Legs 3731 | 23 . . . . . . 7 1694 344 320 96 316 247 641 43 . . . Wheels 721 | 12 709 . . . . . . . . . . . . . . . . . Hover . | . . . . . . . . . . . . . . . . . . . Flight . | . . . . . . . . . . . . . . . . . . . Fastest Speed 50 | 95 95 160 160 160 160 160 50 112 112 112 105 105 185 185 160 160 160 50 Average Speed 156 | 123 132 160 160 160 160 160 98 147 181 177 111 182 185 185 172 160 160 147 Slowest Speed 800 | 160 160 160 160 160 160 160 800 187 187 187 185 185 185 185 540 160 160 240 Overloaded Moves . | . . . . . . . . . . . . . . . . . . . Propulsion Burnouts . | . . . . . . . . . . . . . . . . . . . Robots Hopped . | . . . . . . . . . . . . . . . . . . . Cave-ins Triggered 1 | . . . . . . . . . . . . . . 1 . . . . Exploration Rate (%) 49 | 3 97 82 60 21 51 . 51 27 63 52 71 58 7 65 82 69 18 13 Regions Visited 18 Branch Regions 11 Pre-discovered Areas 4 | . 2 1 . . . . . . . . 1 . . . . . . . Known Exits Taken 9 | . . . . . 1 1 . 1 1 1 1 1 1 . . . 1 . Unknown Exits Taken 8 | 1 1 1 1 1 . . . . . . . . . 1 1 1 . . Scrap Searched 8 | . . 3 . . . . . . 1 . . 4 . . . . . . Spaces Dug 220 | . 7 . . . 11 . . 18 . 2 . . 19 19 . . 144 . Terrain Destroyed 553 | . 10 3 . 10 11 . . 34 95 159 . 20 20 25 18 . 144 4 Melee 12 | . 3 . . . 9 . . . . . . . . . . . . . Projectile 127 | . 7 3 . . 2 . . 34 2 2 . 1 20 25 18 . 9 4 AOE 414 | . . . . 10 . . . . 93 157 . 19 . . . . 135 . Terrain Rammed . | . . . . . . . . . . . . . . . . . . . Walls Destroyed . | . . . . . . . . . . . . . . . . . . . Machines Disabled . | . . . . . . . . . . . . . . . . . . . Actions | -11 -10 -10 -10 -9 -8 -7 -7 -6 -6 -6 -6 -5 -5 -5 -5 -5 -5 -4 --------- Run | Scr Mat Min Exi Min Mat Fac DSF Fac Low Low Dat Pro Fac Ext Cet Arc Hub Fac Total 10923 | 61 1485 807 219 34 1708 4 199 2128 365 338 101 407 383 989 455 69 394 777 Wait 1979 | . 154 306 . . 651 . 7 238 3 . . 26 81 160 56 9 127 161 Move 7629 | 46 1182 466 211 33 861 2 111 1693 343 319 95 315 246 639 274 51 239 503 Hop . | . . . . . . . . . . . . . . . . . . . Pick Up 132 | 1 30 1 2 . 22 . 2 32 1 . . 6 5 13 10 2 . 5 Fast Attach 84 | 1 6 . . . 9 . 15 18 . 2 2 3 3 6 12 . 1 6 Attach 52 | . 4 . 2 . 5 2 7 3 1 1 . 3 4 4 7 . . 9 Detach 28 | . 3 . . . 4 . 3 7 . . . 2 3 2 . . 1 3 Swap 97 | 4 19 1 1 . 21 . 4 7 4 . 2 5 3 6 2 . 6 12 Drop 174 | 3 15 2 3 . 34 . 12 39 2 1 2 8 9 19 15 2 1 7 Fire 589 | 6 59 22 . 1 79 . 38 91 11 15 . 39 29 47 78 5 17 52 Melee 15 | . 5 . . . 10 . . . . . . . . . . . . . Ram 4 | . . . . . . . . . . . . . . . . . . 4 Kick . | . . . . . . . . . . . . . . . . . . . Crush 47 | . 8 9 . . 12 . . . . . . . . . 1 . 2 15 Escape Stasis 19 | . . . . . . . . . . . . . . 19 . . . . Rewire 74 | . . . . . . . . . . . . . . 74 . . . . Trap . | . . . . . . . . . . . . . . . . . . . Miscellaneous . | . . . . . . . . . . . . . . . . . . . Route ------- -11/Scrapyard -10/Materials (discovered 4 exits: [*Mat x3] / [*Min]) -10/Mines (discovered 3 exits: [*Mat x2] / *Exi) -10/Exiles -9/Mines -8/Materials -7/Factory -7/DSF -6/Factory (discovered 2 exits: *Fac / *Low) -6/Lower Caves -6/Lower Caves (discovered 2 exits: *Fac / *Dat) -6/Data Miner -5/Proximity Caves -5/Factory (discovered 5 exits: Fac x3 / *Ext x2) -5/Extension (discovered 2 exits: *Fac / *Cet) -5/Cetus (discovered 2 exits: *Fac / *Arc) -5/Archives (discovered 2 exits: *Fac / *Hub) -5/Hub_04(d) -4/Factory History --------- Turn | Location | Event 3 | -11/Scrapyard | Discovered new exit (range 2) 87 | -11/Scrapyard | Entered Materials 300 | -10/Materials | Discovered new exit (range 9) 317 | -10/Materials | Build established: Mutant 393 | -10/Materials | Central database locked down 846 | -10/Materials | Discovered new exit (range 3) 1092 | -10/Materials | Core integrity fell below 50% 1219 | -10/Materials | Repaired Lrg. Storage Unit 1282 | -10/Materials | Repaired Imp. Light Cannon 1388 | -10/Materials | Core integrity fell below 20% 1448 | -10/Materials | Discovered new exit (range 9) 1595 | -10/Materials | Discovered new exit (range 15) 2097 | -10/Materials | Entered Mines 2127 | -10/Mines | Excavation squad dispatched 2127 | -10/Mines | A large section of the Mines collapsed 2377 | -10/Mines | Excavation squad dispatched 2627 | -10/Mines | Excavation squad dispatched 2638 | -10/Mines | Learned location of Storage (-9) 2759 | -10/Mines | Discovered new exit (range 3) 3005 | -10/Mines | Learned 2 Materials zone layouts 3194 | -10/Mines | Discovered new exit (range 6) 3221 | -10/Mines | Deemed a non-threat by the Exiles lab entrance 3221 | -10/Mines | Discovered new exit (range 5) 3232 | -10/Mines | Entered Exiles 3232 | -10/Exiles | Accompanied by 2 allies 3262 | -10/Exiles | Led the pair of lost Derelicts to a safe place 3276 | -10/Exiles | Met 8R-AWN 3306 | -10/Exiles | Met EX-HEX 3359 | -10/Exiles | Met EX-BIN 3379 | -10/Exiles | Aligned with FarCom system 3381 | -10/Exiles | Given EX-Vault access code 3421 | -10/Exiles | Opened EX-Vault 3455 | -10/Exiles | Warned to stay clear of 0b10 Research branches 3486 | -10/Exiles | Exiles lab attacked by MAIN.C 3562 | -10/Exiles | Discovered new exit (range 10) 3577 | -10/Exiles | Entered Mines 3611 | -9/Mines | Discovered new exit (range 14) 3632 | -9/Mines | Entered Materials 3632 | -8/Materials | Evolved 4 slots: Propulsion x2, Utility x2 3633 | -8/Materials | Identified exit to Factory 4210 | -8/Materials | Build established: Scavenger-Mutant 5036 | -8/Materials | Build established: Mutant 5512 | -8/Materials | Garrison activated, responded to threat 5948 | -8/Materials | Repaired Imp. Ion Engine 6028 | -8/Materials | Entered Factory 6028 | -7/Factory | Evolved 2 slots: Utility x2 6034 | -7/Factory | Identified exit to DSF 6034 | -7/Factory | Entered DSF 6087 | -7/DSF | Additional patrols routed to DSF 6110 | -7/DSF | Discovered new exit (range 11) 6193 | -7/DSF | Sterilization system engaged 6201 | -7/DSF | Lost 13 parts (2p4n4u3w) 6213 | -7/DSF | Ambient heat levels rising (+10) 6228 | -7/DSF | Ambient heat levels rising (+10) 6243 | -7/DSF | Ambient heat levels rising (+10) 6258 | -7/DSF | Ambient heat levels rising (+10) 6273 | -7/DSF | Ambient heat levels rising (+10) 6288 | -7/DSF | Ambient heat levels rising (+10) 6293 | -7/DSF | Identified exit to Factory 6303 | -7/DSF | Ambient heat levels rising (+10) 6309 | -7/DSF | Entered Factory 6309 | -6/Factory | Evolved 2 slots: Power x1, Utility x1 6511 | -6/Factory | Build established: Scavenger-Mutant 7924 | -6/Factory | Fabricated Graphene Brace? 7993 | -6/Factory | Found Hvy. Insulated Plating 7996 | -6/Factory | Found Hvy. Insulated Plating 8074 | -6/Factory | Discovered new exit (range 3) 8078 | -6/Factory | Identified exit to Factory 8285 | -6/Factory | Build established: Mutant 9343 | -6/Factory | Discovered new exit (range 16) 9369 | -6/Factory | Identified exit to Lower Caves 9390 | -6/Factory | Entered Lower Caves 9465 | -6/Lower Caves | Learned Factory stockpile data 9809 | -6/Lower Caves | Build established: Scavenger-Mutant 9870 | -6/Lower Caves | Encountered a Warlord checkpoint 9899 | -6/Lower Caves | Learned 4 Factory zone layouts 9998 | -6/Lower Caves | Discovered new exit (range 5) 10003 | -6/Lower Caves | Identified exit to Lower Caves 10018 | -6/Lower Caves | Learned Factory interactive machine intel 10058 | -6/Lower Caves | Entered another Lower Caves area 10065 | -6/Lower Caves | Encountered a Warlord checkpoint 10079 | -6/Lower Caves | Discovered exit to Factory (range 8) 10102 | -6/Lower Caves | Attracted the attention of an 0b10 checkpoint 10475 | -6/Lower Caves | Learned 12 Factory zone layouts 10563 | -6/Lower Caves | Discovered new exit (range 2) 10565 | -6/Lower Caves | Identified exit to Data Miner 10596 | -6/Lower Caves | Found Alien Artifact 10596 | -6/Lower Caves | Identified Dimensional Node Initializer 10596 | -6/Lower Caves | Initialized slip node 10667 | -6/Lower Caves | Entered Data Miner 10668 | -6/Data Miner | Discovered new exit (range 6) 10690 | -6/Data Miner | Met Data Miner 10718 | -6/Data Miner | Learned location of Section 7 (-2) 10718 | -6/Data Miner | Acquired the access code to Warlord's prototype stash 10735 | -6/Data Miner | Received God Mode back door access code from Data Miner 10778 | -6/Data Miner | Identified exit to Proximity Caves 10780 | -6/Data Miner | Entered Proximity Caves 10962 | -5/Proximity Caves | Escorted by Enhanced Grunt 10990 | -5/Proximity Caves | Build established: Mutant 11211 | -5/Proximity Caves | Learned 12 Factory zone layouts 11266 | -5/Proximity Caves | Received a Behemoth hack from an annoying Tinkerer 11401 | -5/Proximity Caves | Discovered exit to Factory (range 3) 11494 | -5/Proximity Caves | Entered Factory 11494 | -5/Factory | Evolved 2 slots: Utility x2 11495 | -5/Factory | Identified exit to Factory 11495 | -5/Factory | Identified exit to Extension 11497 | -5/Factory | Loaded intel: 54 interactive machine locations 11770 | -5/Factory | Build established: Scavenger-Mutant 12049 | -5/Factory | Found Hvy. Reactive Plating 12052 | -5/Factory | Found Hvy. Reactive Plating 12059 | -5/Factory | Found Hvy. Reactive Plating 12065 | -5/Factory | Found Hvy. Reactive Plating 12099 | -5/Factory | Discovered exit to Extension (range 11) 12118 | -5/Factory | Entered Extension 12227 | -5/Extension | Rescued a captive Derelict 12233 | -5/Extension | Rescued a captive Derelict 12345 | -5/Extension | Build established: Mutant 12681 | -5/Extension | Rescued a captive Derelict 12682 | -5/Extension | Rescued a captive Derelict 12728 | -5/Extension | Rescued A7 12822 | -5/Extension | Rescued a captive Derelict 12914 | -5/Extension | Rescued a captive Derelict 12920 | -5/Extension | Rescued a captive Derelict 13079 | -5/Extension | Crushed by falling debris 13087 | -5/Extension | Rescued a captive Derelict 13087 | -5/Extension | Rescued a captive Derelict 13148 | -5/Extension | Rescued a captive Derelict 13149 | -5/Extension | Rescued a captive Derelict 13283 | -5/Extension | Repaired Hvy. Reactive Plating 13502 | -5/Extension | Build established: Scavenger-Mutant 13507 | -5/Extension | Rescued a captive Derelict 13517 | -5/Extension | Rescued a captive Derelict 13544 | -5/Extension | Rescued a captive Derelict 13612 | -5/Extension | Discovered exit to Factory (range 10) 13614 | -5/Extension | Discovered new exit (range 6) 13723 | -5/Extension | Entered Cetus 13723 | -5/Cetus | Accompanied by 7 allies (A7) 13728 | -5/Cetus | Acquired a Cetus Manufacturing Module code from A7 13755 | -5/Cetus | Spotted Cetus Guard 13755 | -5/Cetus | Spotted Cetus Guard 13758 | -5/Cetus | Spotted Cetus Guard 13760 | -5/Cetus | Spotted Cetus Guard 13777 | -5/Cetus | Allies destroyed Cetus Guard 13783 | -5/Cetus | Destroyed Cetus Guard 13797 | -5/Cetus | Destroyed Cetus Guard 13850 | -5/Cetus | Destroyed Cetus Guard 13851 | -5/Cetus | Lost 3 parts (2p1u) 13871 | -5/Cetus | Destroyed 8 combat bots 13903 | -5/Cetus | Lost 3 parts (3n) 13930 | -5/Cetus | Extracted ID and sensor layout for unrecognized location from A7's data core 13987 | -5/Cetus | System corruption reached 10% 14141 | -5/Cetus | Started Cetus Manufacturing Module 14166 | -5/Cetus | Manufactured an Enhanced Grunt 14191 | -5/Cetus | Manufactured an Enhanced Grunt 14216 | -5/Cetus | Manufactured an Enhanced Grunt 14241 | -5/Cetus | Manufactured an Enhanced Grunt 14266 | -5/Cetus | Manufactured an Enhanced Grunt 14354 | -5/Cetus | Cetus Manufacturing Module disabled 14369 | -5/Cetus | Discovered new exit (range 16) 14395 | -5/Cetus | Spotted Cetus Guard 14396 | -5/Cetus | Spotted Cetus Guard 14404 | -5/Cetus | Allies destroyed Cetus Guard 14405 | -5/Cetus | Spotted Cetus Guard 14410 | -5/Cetus | Spotted Cetus Guard 14413 | -5/Cetus | Allies destroyed Cetus Guard 14416 | -5/Cetus | Allies destroyed Cetus Guard 14422 | -5/Cetus | Allies destroyed Cetus Guard 14429 | -5/Cetus | Discovered exit to Factory (range 16) 14438 | -5/Cetus | Met Revision 17 14518 | -5/Cetus | Entered Archives 14518 | -5/Archives | Accompanied by 3 allies 14559 | -5/Archives | Unable to access archive contents 14569 | -5/Archives | Discovered exit to Factory (range 15) 14591 | -5/Archives | Discovered new exit (range 15) 14627 | -5/Archives | Entered Hub_04(d) 14627 | -5/Hub_04(d) | Accompanied by 3 allies 14627 | -5/Hub_04(d) | Discovered exit to Factory (range 10) 14729 | -5/Hub_04(d) | Garrison activated, responded to threat 15140 | -5/Hub_04(d) | Network Hub disabled 15145 | -5/Hub_04(d) | Spotted Lightning 15146 | -5/Hub_04(d) | Spotted Lightning 15169 | -5/Hub_04(d) | Spotted Lightning 15194 | -5/Hub_04(d) | Entered Factory 15194 | -4/Factory | Evolved 2 slots: Utility x1, Weapon x1 15290 | -4/Factory | Fabricated Exp. Signal Interpreter? 15491 | -4/Factory | Build established: Scavenger-Tank 15944 | -4/Factory | First assault squad dispatched 15974 | -4/Factory | Incoming assault squad redirected 16038 | -4/Factory | Repaired Broken Quantum Reactor 16100 | -4/Factory | Repaired Hyp. Gauss Cannon 16215 | -4/Factory | Core integrity fell below 50% 16264 | -4/Factory | Core integrity fell below 20% 16291 | -4/Factory | System corruption reached 10% 16299 | -4/Factory | Released all parts (7) 16328 | -4/Factory | Lost 8 parts (2p5u1w) 16333 | -4/Factory | Destroyed by S-27 Virus with Autogun Last Messages --------------- 16299_ Released Broken Adv. Field Recycling Unit. 16299_ Released Lyr. Heavy Armor Plating. 16299_ Acquired Centrium Heavy Treads. 16300_ Slug penetrates Wall. 16300_ Penetrated by Slug. 16300_ Slug penetrates Wall. 16304_ Slammed into R-10 Processor. 16306_ Acquired 3 matter. 16309_ Slammed into P-70 Sage. 16310_ P-70 Sage knocked back. 16314_ 16325_ Acquired 5 matter. 16325_ Acquired 1 matter. 16326_ Acquired 3 matter. 16327_ Acquired 62 matter. 16327_ Acquired 6 matter. 16328_ Acquired 55 matter. 16328_ Acquired 61 matter. Map ----- +----------------------------------------------------+ | ?????????????????????????????????????????????????? | | ?????????????????????????????????????????????????? | | ?????????????????????????????????????????????????? | | ?????????????????????????????????????????????????? | | ?????????????????????????????????????????????????? | | ?????????????????????????????????????????????????? | | ?????????????????????????????????????????????????? | | ?????????????????????????????????????????????????? | | ?????????????????????????????????????????????????? | | ?????????????????????????????????????????????????? | | ?????????????????????????????????????????????????? | | ????????????????????? ???????????????????????????? | | ??????????????????? k ??????????????????????????? | | ??????????????????? ????????????? ???????????? | | ???????????????????? ######+###### ??????????? | | ??????????????????? ""?????????? | | ?????????????????? """????????? | | ?????????????????? """????????? | | ????????????????? ?????????? | | ????????????????? ""????????? | | ????????????????? """ ??? ??? | | ?????????????????? """ "?? ??? | | ???????????????????? ??? ??? | | ?????????????????????? ^ """ ??? ??" | | ????????????????????????# """ "?" "?" | | "??""" ?????????????????#@ """ """ "?" | | "" """ ?????????????????# s ? | | ?????????????????# """ """ """ | | "" """ "????????????????# """ """ """ | | "" """ "????????????????# """ """ """ | | "" """??????????????????# | | ????????????????????# """ """ """ | | ??????????????????????# """ """ """ | | ###?????????????????????# """ """ """ | | #######################s k | | ^ % %%%%% """ | | ##### p %% #### | | #???# ^ ################# T#################??? | | #####+##+########????????####??????????????????? | | + #???????????????????????????? | | # #???????????????????????????? | | + ] #???????????????????????????? | | ### #???????????????????????????? | | #?# """ """ """ """ #???????????????????????????? | | #?# """ """ """ """?#???????????????????????????? | | #?# """ """ """ """?????????????????????????????? | | #?# ??????????????????????????????? | | #?##############??#??????????????????????????????? | | ###########??????????????????????????????????????? | | ???????????????????????????????????? | +----------------------------------------------------+ Best States ------------- Heat Dissipation 75 Energy Generation 45 Energy Capacity 1025 Matter Stores 300 Matter Capacity 300 Sight Range 22 Terrain Scan Range 16 Terrain Scan Density 10 Jamming Range 14 Armor Coverage 2550 Resistance: KI 40 Resistance: EM 30 Propulsion Shielding 66 Evasion (%) 55 Targeting Accuracy 16 Armor Integrity Analysis 30 Recoil Reduction 4 Particle Charging 30 Kinecelleration 40 Defensive Hacking 22 Authchip Count 1 Item Schematics ----------------- Lrg. Storage Unit | -8/Materials | Scanalyzed Med. Storage Unit | -8/Materials | Scanalyzed Hvy. Shock Bomb Launcher | -6/Factory | Hacked Graphene Brace | -6/Factory | Scanalyzed Armor Integrity Analyzer | -6/Factory | Scanalyzed Huge Storage Unit | -6/Factory | Scanalyzed Enh. Optical Array | -6/Factory | Scanalyzed Hvy. Insulated Plating | -6/Factory | Scanalyzed Combat Drone Bay | -6/Data Miner | Free Lgt. Regenerative Plating | -6/Data Miner | Free Enh. Flexi-carbon Leg | -6/Data Miner | Free Imp. Thermal Defense Suite | -6/Data Miner | Free Enh. Coil Gun | -6/Data Miner | Free Imp. Antigrav System | -6/Data Miner | Free Adv. Coolant Injector | -6/Data Miner | Free Railgun | -6/Data Miner | Free Adv. Datajack | -6/Data Miner | Free Myomer Leg | -6/Data Miner | Free Robot Schematics ------------------ R-10 Processor | -6/Data Miner | Free A-15 Conveyor | -6/Data Miner | Free L-41 Fighter | -6/Data Miner | Free B-60 Warrior | -6/Data Miner | Free H-77 Assassin | -6/Data Miner | Free M-30 Cleanser | -6/Data Miner | Free Fabricated ------------ Graphene Brace | x2 | -6/Factory Exp. Signal Interpreter | x1 | -4/Factory | Preloaded Alien Tech Used ----------------- Dimensional Node Initializer Achievements -------------- None Challenges ------------ None Game ------ Seed DirtySmartbombMembrane Manual? 0 Play Time 02:41:27 Cumulative 360.7 hours Start 2022.03.21 @ 13:57:29 End 2022.03.21 @ 17:13:48 Sessions 1 Manual Loads 0 Difficulty Rogue Special Mode None Game No. 313 Rogue 313 Adventurer 0 Explorer 0 Win Type - Total 6 Types 5/0/1/0/0/0/0/0/0 Lore% 53 Gallery% 73 Achievement% 64 Wizard Run 0 Options --------- ASCII 0 Keyboard 0 Movement Numpad Keybinds 0 Fullscreen 2 Font 18/TerminusBold Map View 76x50 Tactical HUD 1 Map Filters NONE Filters NONE Steam 1 RUN: ad9856e7-4c99-4713-bf23-df7539c450dc